bitfinex/quotes_SOLUSD_20240725
["timestamp","ask_amount","ask_price","bid_price","bid_amount"]
[1721932960647,15.9621,168.0,167.94,45.0]
[1721932960854,15.9621,168.05,167.96,27.26]
[1721932961053,15.9621,168.05,167.97,46.19036191]
[1721932961353,15.9621,168.05,167.98,20.0]
[1721932961558,12.81721539,168.05,167.99,73.45019701]
[1721932961762,12.81721539,168.05,168.0,20.0]
[1721932962046,1.11467535,168.13,168.02,27.26]
[1721932962352,1.11467535,168.16,168.03,46.18998145]
[1721932962563,1.11467535,168.16,168.03,45.0]
[1721932963456,6.642,168.15,168.04,1.18991026]
[1721932963747,1.11467535,168.14,168.03,45.0]
[1721932964142,7.75667535,168.15,168.03,45.0]
[1721932964333,1.11467535,168.14,168.03,45.0]
[1721932964643,17.21577535,168.14,168.03,45.0]
[1721932965046,17.21577535,168.14,168.02,27.26]
[1721932966343,17.21577535,168.14,168.03,45.0]
[1721932966524,17.21577535,168.14,168.02,27.26]
[1721932967568,17.21577535,168.14,168.01,2.8979831]
[1721932967859,17.21577535,168.14,168.0,20.0]
[1721932968231,23.16327535,168.14,168.0,20.0]
[1721932968650,17.21577535,168.14,168.0,20.0]
[1721932968845,17.21577535,168.14,168.01,45.0]
[1721932969741,17.21577535,168.14,168.02,47.26]
[1721932969937,16.1011,168.14,168.03,45.0]
[1721932970143,17.21577535,168.14,168.03,45.0]
[1721932971356,16.1011,168.14,168.05,27.26]
[1721932971532,16.1011,168.14,168.06,65.0]
[1721932971858,6.642,168.15,168.08,27.26]
[1721932972029,15.8993,168.18,168.09,45.0]
[1721932972230,15.8993,168.18,168.1,1.1894954]
[1721932972431,15.8993,168.18,168.09,45.0]
[1721932972432,6.3293,168.2,168.11,27.26]
[1721932972645,6.3293,168.2,168.12,45.0]
[1721932972843,6.3293,168.2,168.13,1.18935716]
[1721932973230,7.44397535,168.2,168.12,45.0]
[1721932973655,6.3293,168.2,168.12,45.0]
[1721932974366,7.44397535,168.2,168.11,27.26]
[1721932974538,7.44397535,168.2,168.08,27.26]
[1721932974729,7.44397535,168.2,168.09,65.0]
[1721932974935,6.3293,168.2,168.09,65.0]
[1721932975160,7.44397535,168.2,168.09,65.0]
[1721932977536,7.44397535,168.2,168.1,1.18959799]
[1721932977736,6.3293,168.2,168.11,1.18954248]
[1721932978464,5.8293,168.2,168.09,65.0]
[1721932978764,6.94397535,168.2,168.09,65.0]
[1721932979460,6.94397535,168.2,168.09,20.0]
[1721932979653,6.64397535,168.2,168.09,20.0]
[1721932979859,5.5293,168.2,168.09,21.18962475]
[1721932980037,6.64397535,168.2,168.09,20.0]
[1721932980836,6.64397535,168.2,168.1,45.0]
[1721932981158,6.64397535,168.2,168.11,20.0]
[1721932981362,6.64397535,168.2,168.12,45.0]
[1721932981655,6.64397535,168.2,168.11,20.0]
[1721932981851,6.64397535,168.2,168.12,45.0]
[1721932982058,5.5293,168.2,168.12,45.0]
[1721932982354,6.64397535,168.2,168.12,45.0]
[1721932982533,6.64397535,168.2,168.09,20.0]
[1721932982741,6.64397535,168.2,168.1,45.0]
[1721932983364,6.64397535,168.2,168.11,20.0]
[1721932983859,6.64397535,168.2,168.08,30.09836888]
[1721932984035,6.64397535,168.2,168.09,20.0]
[1721932984550,6.64397535,168.2,168.08,30.09836888]
[1721932984551,15.5405,168.18,168.08,30.09836888]
[1721932984752,1.11467535,168.17,168.08,30.09836888]
[1721932986031,15.5405,168.18,168.09,45.0]
[1721932986537,15.5405,168.18,168.1,20.0]
[1721932986858,5.5293,168.2,168.13,27.26]
[1721932987060,5.5293,168.2,168.14,45.0]
[1721932989439,5.5293,168.2,168.13,27.26]
[1721932989440,6.64397535,168.2,168.13,27.26]
[1721932989642,6.64397535,168.2,168.1,47.26]
[1721932989870,6.64397535,168.2,168.11,45.0]
[1721932990047,5.5293,168.2,168.12,20.0]
[1721932990372,5.5293,168.2,168.13,45.0]
[1721932990857,5.5293,168.2,168.13,72.26]
[1721932991163,5.5293,168.2,168.13,45.0]
[1721932991380,5.5293,168.2,168.12,20.0]
[1721932991546,5.5293,168.2,168.09,20.0]
[1721932991872,5.5293,168.2,168.11,27.26]
[1721932992047,5.5293,168.2,168.12,65.0]
[1721932992368,5.5293,168.2,168.12,66.18948538]
[1721932992569,5.5293,168.2,168.12,65.0]
[1721932993760,6.64397535,168.2,168.11,27.26]
[1721932994268,6.64397535,168.2,168.08,30.09836888]
[1721932994439,6.64397535,168.2,168.08,27.26]
[1721932994642,30.43927535,168.2,168.08,27.26]
[1721932994843,34.0678,168.19,168.05,27.26]
[1721932995078,1.11467535,168.18,168.05,27.26]
[1721932995367,1.11467535,168.17,168.05,27.26]
[1721932996144,1.11467535,168.17,168.06,65.0]
[1721932997241,5.9467,168.16,168.06,65.0]
[1721932997452,1.11467535,168.15,168.06,65.0]
[1721932998353,1.11467535,168.18,168.06,65.0]
[1721932998657,1.11467535,168.17,168.06,65.0]
[1721933000377,1.11467535,168.17,168.04,27.26]
[1721933000551,16.3053,168.15,168.04,27.26]
[1721933000752,17.41997535,168.15,168.05,20.0]
[1721933000951,1.11467535,168.14,168.05,20.0]
[1721933003372,16.3053,168.15,168.07,27.26]
[1721933003578,16.3053,168.15,168.1,27.26]
[1721933003781,16.3053,168.15,168.11,20.0]
[1721933004070,16.3053,168.15,168.1,27.26]
[1721933004248,16.3053,168.15,168.07,27.26]
[1721933004670,1.11467535,168.14,168.07,27.26]
[1721933004971,17.41997535,168.15,168.04,27.26]
[1721933005181,16.3053,168.15,168.04,27.26]
[1721933005358,16.3053,168.15,168.05,1.18980973]
[1721933005678,16.3053,168.15,168.04,27.26]
[1721933005864,1.11467535,168.14,168.04,27.26]
[1721933006258,17.41997535,168.15,168.04,27.26]
[1721933006763,17.41997535,168.15,168.05,20.0]
[1721933006961,16.3053,168.15,168.05,20.0]
[1721933007353,1.11467535,168.14,168.05,20.0]
[1721933007679,1.11467535,168.14,168.0,27.26]
[1721933008579,7.06237535,168.14,168.0,30.06778242]
[1721933008889,5.948,168.13,168.0,30.06778242]
[1721933009053,1.11467535,168.12,168.0,30.06778242]
[1721933009762,1.11467535,168.12,168.01,65.0]
[1721933011176,1.11467535,168.12,168.02,1.19020262]
[1721933011762,1.11467535,168.12,168.01,65.0]
[1721933012877,23.1718,168.11,167.97,27.26]
[1721933013178,1.11467535,168.1,167.97,27.26]
[1721933013361,1.11467535,168.1,167.98,1.19029857]
[1721933013556,1.11467535,168.1,167.97,28.45029881]
[1721933013760,7.06367535,168.1,167.97,27.26]
[1721933014152,1.11467535,168.1,167.97,27.26]
[1721933014582,1.11467535,168.1,167.98,20.0]
[1721933014583,7.06347535,168.1,167.98,20.0]
[1721933014886,1.11467535,168.1,167.97,27.26]
[1721933015177,5.9492,168.09,167.97,27.26]
[1721933015382,1.11467535,168.08,167.97,27.26]
[1721933015587,1.11467535,168.07,167.97,27.26]
[1721933015881,1.11467535,168.07,167.98,45.0]
[1721933016576,1.11467535,168.06,167.98,45.0]
[1721933016790,15.6812,168.05,167.97,27.26]
[1721933016966,1.11467535,168.04,167.97,27.26]
[1721933017284,16.79587535,168.05,167.95,2.84309263]
[1721933017457,1.11467535,168.04,167.95,20.0]
[1721933018087,16.79587535,168.05,167.95,20.0]
[1721933018386,7.32237535,168.04,167.94,27.26]
[1721933018561,7.32237535,168.04,167.95,45.0]
[1721933021082,7.32237535,168.04,167.94,27.26]
[1721933021391,7.32237535,168.04,167.95,20.0]
[1721933021579,21.5071,168.03,167.92,2.85119418]
[1721933021884,1.11467535,168.02,167.89,27.26]
[1721933022179,15.5556,168.03,167.9,20.0]
[1721933022180,1.11467535,168.01,167.9,20.0]
[1721933022895,1.11467535,168.01,167.91,45.0]
[1721933023077,1.11467535,168.01,167.92,20.0]
[1721933023278,1.11467535,168.01,167.91,45.0]
[1721933023480,1.11467535,168.01,167.9,45.0]
[1721933024894,15.5556,168.03,167.92,27.26]
[1721933025089,1.11467535,168.02,167.93,45.0]
[1721933025272,1.11467535,168.01,167.93,45.0]
[1721933025468,1.11467535,168.0,167.89,2.84026758]
[1721933025776,22.9011,167.99,167.85,28.0462931]
[1721933026090,1.11467535,167.98,167.85,28.0462931]
[1721933026277,1.11467535,167.98,167.85,30.77011041]
[1721933027081,1.11467535,167.98,167.86,45.0]
[1721933027277,5.9534,167.97,167.86,1.19116844]
[1721933027488,1.11467535,167.96,167.86,1.19116844]
[1721933027696,1.11467535,167.97,167.86,21.19116844]
[1721933028203,7.06807535,167.97,167.86,1.19116844]
[1721933028771,7.06807535,167.97,167.85,0.7862931]
[1721933028772,22.0671,167.94,167.85,0.7862931]
[1721933028964,22.0671,167.92,167.85,0.7862931]
[1721933029185,23.18177535,167.92,167.85,0.7862931]
[1721933029387,29.13707535,167.92,167.85,0.7862931]
[1721933029698,23.18177535,167.92,167.85,0.7862931]
[1721933030270,29.13717535,167.92,167.85,0.7862931]
[1721933030470,29.13727535,167.92,167.85,0.7862931]
[1721933030674,23.18177535,167.92,167.85,0.7862931]
[1721933031075,29.13707535,167.92,167.85,0.7862931]
[1721933031395,22.0671,167.92,167.85,0.7862931]
[1721933031776,1.11467535,167.91,167.85,0.7862931]
[1721933032176,1.11467535,167.9,167.85,0.7862931]
[1721933032771,22.0671,167.92,167.85,0.7862931]
[1721933038571,23.18177535,167.92,167.85,0.7862931]
[1721933039786,29.13707535,167.92,167.85,0.7862931]
[1721933039977,23.18177535,167.92,167.85,0.7862931]
[1721933040176,29.13707535,167.92,167.85,0.7862931]
[1721933040502,23.18177535,167.92,167.85,0.7862931]
[1721933040699,1.11467535,167.91,167.85,0.7862931]
[1721933040870,1.11467535,167.9,167.85,0.7862931]
[1721933041070,1.11467535,167.89,167.85,0.7862931]
[1721933041271,23.18177535,167.92,167.85,0.7862931]
[1721933041572,1.11467535,167.91,167.85,0.7862931]
[1721933041897,22.0671,167.92,167.85,0.7862931]
[1721933042072,1.11467535,167.91,167.85,0.7862931]
[1721933042870,7.07027535,167.91,167.85,0.7862931]
[1721933043491,1.11467535,167.91,167.85,0.7862931]
[1721933043980,7.07027535,167.91,167.85,0.7862931]
[1721933044193,1.11467535,167.91,167.85,0.7862931]
[1721933044406,30.77924382,167.91,167.85,0.7862931]
[1721933044614,5.957,167.87,167.85,0.7862931]
[1721933044902,24.18817535,167.86,167.74,1.03341598]
[1721933045093,1.11467535,167.85,167.74,1.03341598]
[1721933045298,5.9583,167.84,167.73,2.72654913]
[1721933045495,1.11467535,167.83,167.7,27.26]
[1721933045679,5.9614,167.75,167.68,0.7862931]
[1721933045880,27.26,167.77,167.68,0.7862931]
[1721933045881,7.07637535,167.74,167.68,0.7862931]
[1721933046100,24.27617535,167.73,167.68,0.7862931]
[1721933046402,5.9629,167.71,167.68,0.7862931]
[1721933046574,7.07787535,167.7,167.68,0.7862931]
[1721933046773,2.40456847,167.71,167.68,0.7862931]
[1721933046981,1.11467535,167.71,167.59,27.0462931]
[1721933047279,7.07797535,167.7,167.58,2.69105722]
[1721933047598,7.07777535,167.7,167.56,33.4719]
[1721933047777,1.11467535,167.7,167.59,27.26]
[1721933048206,24.27617535,167.73,167.59,27.95286721]
[1721933048380,24.27617535,167.73,167.59,26.76]
[1721933049098,24.27617535,167.73,167.6,45.0]
[1721933049796,24.27617535,167.73,167.6,72.26]
[1721933050675,1.11467535,167.73,167.63,27.26]
[1721933050880,6.5047,167.81,167.66,33.8751]
[1721933051186,7.61937535,167.81,167.67,66.19229478]
[1721933051389,7.61937535,167.81,167.67,66.19229419]
[1721933051586,7.61937535,167.81,167.67,57.69224564]
[1721933051814,6.5047,167.81,167.69,27.26]
[1721933052002,6.5047,167.81,167.7,45.0]
[1721933052301,1.49026172,167.8,167.7,45.0]
[1721933052496,1.4902328,167.79,167.7,45.0]
[1721933052681,6.2273,167.85,167.72,27.26]
[1721933052882,16.4693,167.88,167.75,27.26]
[1721933053079,6.2273,167.9,167.76,1.19172979]
[1721933053299,6.2273,167.9,167.78,27.26]
[1721933053486,1.48932286,167.93,167.79,46.19145829]
[1721933053687,6.3738,167.96,167.81,27.26]
[1721933053917,1.48920718,167.95,167.82,46.19136574]
[1721933054193,7.44340718,167.95,167.82,45.0]
[1721933054608,6.3738,167.96,167.82,45.0]
[1721933054897,5.9542,167.95,167.82,45.0]
[1721933055103,5.9545,167.94,167.81,27.26]
[1721933055402,45.11,167.95,167.78,21.3301]
[1721933055603,5.9545,167.94,167.79,65.0]
[1721933055785,45.11,167.95,167.79,65.0]
[1721933055987,51.0642,167.95,167.79,65.0]
[1721933056183,6.3738,167.96,167.79,65.0]
[1721933056387,5.9545,167.94,167.79,65.0]
[1721933056705,5.9555,167.92,167.79,65.0]
[1721933057097,7.44504601,167.91,167.79,65.0]
[1721933057311,1.48954601,167.91,167.79,65.0]
[1721933057800,1.48954601,167.91,167.79,20.0]
[1721933058179,1.48954601,167.91,167.78,2.81518766]
[1721933058388,5.956,167.9,167.74,30.71]
[1721933058583,1.48976631,167.89,167.73,6.3837]
[1721933059312,1.48976631,167.89,167.74,1.19182448]
[1721933059519,1.48971946,167.88,167.73,9.14937292]
[1721933059701,1.48971946,167.88,167.74,20.0]
[1721933060200,1.48971946,167.88,167.75,45.0]
[1721933060420,1.48971946,167.88,167.76,20.0]
[1721933060713,1.48971946,167.88,167.74,21.19183799]
[1721933061004,1.48979348,167.9,167.76,1.19183479]
[1721933061190,1.48962873,167.89,167.77,1.19170298]
[1721933061390,1.48962873,167.89,167.75,1.19172718]
[1721933061591,1.48962873,167.89,167.75,46.19172718]
[1721933061793,1.48965271,167.92,167.78,30.71]
[1721933061999,1.48965271,167.92,167.79,65.0]
[1721933062517,1.4894442,167.94,167.8,1.19155536]
[1721933062882,1.4894442,167.94,167.79,66.19141203]
[1721933063088,1.4894442,167.94,167.79,65.0]
[1721933063290,5.9556,167.91,167.74,30.71]
[1721933063485,1.4897786,167.9,167.74,30.71]
[1721933063689,5.9557,167.91,167.74,30.71]
[1721933063690,1.48978396,167.89,167.74,30.71]
[1721933063908,7.44608396,167.89,167.74,30.71]
[1721933064103,7.44608396,167.89,167.73,9.14937292]
[1721933064304,22.52028396,167.89,167.73,9.14937292]
[1721933064708,16.56398396,167.89,167.74,1.1919521]
[1721933065018,16.56398396,167.89,167.73,9.14937292]
[1721933065214,6.3182,167.88,167.73,2.76567292]
[1721933065530,5.9573,167.86,167.7,30.71]
[1721933065692,1.49021742,167.85,167.7,30.71]
[1721933065900,1.49021742,167.85,167.71,1.19216751]
[1721933066221,1.49021742,167.85,167.7,33.51403947]
[1721933066515,1.49021742,167.85,167.71,1.19206993]
[1721933066814,1.49021742,167.85,167.71,66.19206993]
[1721933067396,1.49003303,167.86,167.71,66.19206993]
[1721933067813,6.3182,167.88,167.71,66.19206993]
[1721933067814,1.48994296,167.87,167.71,66.19206993]
[1721933069015,1.48979249,167.86,167.71,86.19206993]
[1721933069203,1.48970342,167.85,167.71,86.19206993]
[1721933069405,1.48970342,167.85,167.71,66.19206993]
[1721933070001,1.48970342,167.85,167.71,63.69206993]
[1721933070311,7.80810037,167.88,167.71,63.69206993]
[1721933071502,13.76480037,167.88,167.71,63.69206993]
[1721933071703,7.80810037,167.88,167.71,63.69206993]
[1721933071922,5.9575,167.86,167.71,18.69206993]
[1721933072114,1.49006785,167.85,167.71,18.69206993]
[1721933072419,3.89452195,167.87,167.71,18.69206993]
[1721933073007,1.48995348,167.87,167.71,18.69206993]
[1721933073304,6.3182,167.88,167.74,50.71]
[1721933073515,6.3182,167.88,167.75,65.0]
[1721933073719,7.80761097,167.88,167.75,65.0]
[1721933075424,13.76441097,167.88,167.75,20.0]
[1721933075613,7.80761097,167.88,167.75,20.0]
[1721933076816,7.80761097,167.88,167.76,45.0]
[1721933077412,7.80761097,167.88,167.74,30.71]
[1721933077615,5.957,167.87,167.7,33.51403947]
[1721933077816,1.48992929,167.86,167.71,45.0]
[1721933078732,1.48992779,167.85,167.71,45.0]
[1721933078940,1.48992779,167.85,167.72,20.0]
[1721933079428,1.48992779,167.85,167.7,2.80403947]
[1721933079630,1.48992779,167.85,167.64,31.38592808]
[1721933079631,39.7187,167.84,167.64,43.12803398]
[1721933079840,39.7187,167.84,167.64,30.71]
[1721933079841,5.9604,167.78,167.64,30.71]
[1721933080127,1.49087198,167.77,167.64,30.71]
[1721933080336,1.49070466,167.76,167.64,30.71]
[1721933080837,1.49070466,167.76,167.64,33.52498783]
[1721933081214,1.49072025,167.75,167.64,33.52498783]
[1721933081936,6.6143,167.74,167.64,33.52498783]
[1721933082628,6.6143,167.74,167.65,20.0]
[1721933083723,1.49078517,167.73,167.65,20.0]
[1721933084624,6.6143,167.74,167.65,20.0]
[1721933084836,6.6143,167.74,167.66,45.0]
[1721933085332,6.063,167.78,167.68,30.71]
[1721933085529,6.063,167.78,167.69,65.0]
[1721933086121,15.3539,167.81,167.69,65.0]
[1721933086523,6.0141,167.82,167.72,30.71]
[1721933086715,6.0141,167.82,167.73,65.0]
[1721933087113,15.6144,167.86,167.73,65.0]
[1721933087322,1.4896605,167.85,167.73,65.0]
[1721933087644,15.6144,167.86,167.73,65.0]
[1721933088133,1.48985324,167.85,167.73,65.0]
[1721933088333,15.6144,167.86,167.73,65.0]
[1721933088529,1.48981821,167.85,167.73,65.0]
[1721933088731,1.48976592,167.85,167.73,95.71]
[1721933088940,15.6144,167.86,167.73,95.71]
[1721933089321,1.48967728,167.85,167.73,95.71]
[1721933089514,15.6144,167.86,167.73,95.71]
[1721933089723,6.0141,167.87,167.77,30.71]
[1721933090025,16.6554,167.91,167.78,65.0]
[1721933090943,1.48915081,167.9,167.78,65.0]
[1721933091131,1.48928349,167.89,167.78,65.0]
[1721933091818,16.6554,167.91,167.78,65.0]
[1721933092346,1.48928103,167.9,167.78,65.0]
[1721933092545,1.48928176,167.89,167.78,65.0]
[1721933092724,16.6554,167.91,167.78,65.0]
[1721933093044,1.48927278,167.9,167.78,65.0]
[1721933093223,1.4893928,167.89,167.78,20.0]
[1721933093418,1.4893928,167.89,167.77,20.0]
[1721933094424,1.4893928,167.89,167.78,45.0]
[1721933094741,1.48953412,167.88,167.79,20.0]
[1721933094933,1.48934031,167.9,167.8,45.0]
[1721933095142,1.48946338,167.89,167.8,45.0]
[1721933097628,1.48946338,167.89,167.76,46.1351]
[1721933097852,1.48946338,167.89,167.77,65.0]
[1721933099829,1.48949101,167.88,167.77,65.0]
[1721933100629,1.48953099,167.9,167.77,65.0]
[1721933100831,1.48946432,167.89,167.77,65.0]
[1721933101229,16.6554,167.91,167.77,91.1622]
[1721933102041,9.69765192,167.98,167.85,30.71]
[1721933102233,12.59090049,167.99,167.86,65.0]
[1721933102432,6.4449,167.99,167.86,65.0]
[1721933102642,1.48854725,167.98,167.86,65.0]
[1721933103040,1.48854725,167.98,167.86,20.0]
[1721933103369,1.48854725,167.98,167.77,6.1622]
[1721933103370,21.74311572,167.98,167.77,21.5873]
[1721933103661,16.6554,167.87,167.73,6.1622]
[1721933103840,16.6554,167.87,167.72,15.4251]
[1721933103841,7.44763023,167.86,167.72,15.4251]
[1721933104033,1.49013171,167.85,167.72,15.4251]
[1721933104234,1.49013171,167.85,167.69,6.1622]
[1721933105452,18.14522787,167.87,167.69,6.1622]
[1721933105756,18.14522787,167.87,167.69,8.82554442]
[1721933106142,24.10222787,167.87,167.69,8.82554442]
[1721933106465,20.54979634,167.87,167.69,2.66334442]
[1721933106767,14.8943,167.85,167.64,52.2973]
[1721933106966,5.9591,167.81,167.64,52.2973]
[1721933107264,23.1003,167.79,167.64,52.2973]
[1721933107553,1.49060724,167.78,167.64,52.2973]
[1721933108056,1.49060724,167.78,167.64,21.5873]
[1721933109567,1.49060724,167.78,167.65,20.0]
[1721933110559,5.9605,167.77,167.65,20.0]
[1721933110757,1.49076403,167.76,167.62,22.76995369]
[1721933110939,1.49076403,167.76,167.62,20.0]
[1721933111140,1.49076403,167.76,167.61,20.0]
[1721933111732,1.49069824,167.75,167.61,20.0]
[1721933111933,1.49069824,167.75,167.62,45.0]
[1721933112233,1.49069824,167.75,167.63,20.0]
[1721933112434,1.49069824,167.75,167.6,40.63895516]
[1721933112644,7.45189824,167.75,167.6,40.63895516]
[1721933112939,40.9503,167.79,167.6,40.63895516]
[1721933112940,1.49101691,167.74,167.6,40.63895516]
[1721933113139,1.49101796,167.73,167.6,40.63895516]
[1721933113655,1.49086644,167.72,167.6,34.47675516]
[1721933113869,23.1003,167.71,167.6,1.03050185]
[1721933114168,1.49136889,167.7,167.55,6.1622]
[1721933114958,7.45436889,167.7,167.55,6.1622]
[1721933115158,1.49136889,167.7,167.55,6.1622]
[1721933115367,1.49136889,167.7,167.59,5.9668]
[1721933115536,1.49136889,167.7,167.6,5.9664]
[1721933115737,1.4913979,167.7,167.55,8.94841594]
[1721933116047,23.1003,167.71,167.68,5.9636]
[1721933116251,5.9597,167.8,167.68,5.9636]
[1721933116252,23.1003,167.76,167.68,5.9636]
[1721933116563,23.1003,167.76,167.66,5.9642]
[1721933116564,1.49076637,167.75,167.66,5.9642]
[1721933116759,23.1003,167.76,167.62,30.71]
[1721933116956,23.1003,167.76,167.63,20.0]
[1721933116957,1.49078219,167.75,167.63,20.0]
[1721933117248,5.9623,167.72,167.58,30.71]
[1721933117455,1.49123237,167.72,167.59,20.0]
[1721933118558,1.49116788,167.75,167.59,20.0]
[1721933118765,1.49117566,167.74,167.59,20.0]
[1721933118936,23.1003,167.76,167.62,30.71]
[1721933119139,23.1003,167.76,167.63,20.0]
[1721933119577,23.1003,167.76,167.64,45.0]
[1721933119753,23.1003,167.8,167.65,41.5873]
[1721933119952,23.1003,167.8,167.66,75.71]
[1721933120157,1.49024663,167.79,167.67,20.0]
[1721933120350,1.490402,167.79,167.68,45.0]
[1721933120556,1.490402,167.79,167.69,20.0]
[1721933121058,1.490402,167.79,167.7,45.0]
[1721933121270,1.49024189,167.78,167.7,45.0]
[1721933121454,1.49024189,167.78,167.69,20.0]
[1721933121654,1.49024189,167.78,167.7,45.0]
[1721933121867,23.1003,167.8,167.7,45.0]
[1721933122082,21.7132,167.84,167.71,20.0]
[1721933122250,1.49007554,167.83,167.72,45.0]
[1721933122572,1.49013828,167.82,167.72,45.0]
[1721933122949,1.49013828,167.82,167.71,20.0]
[1721933123257,5.9601,167.78,167.67,20.0]
[1721933123461,1.49063648,167.77,167.66,20.0]
[1721933123653,1.49062458,167.83,167.66,20.0]
[1721933124050,1.49031524,167.82,167.66,20.0]
[1721933124471,7.44911524,167.82,167.66,20.0]
[1721933124682,5.9593,167.81,167.66,20.0]
[1721933124973,1.49036239,167.8,167.67,45.0]
[1721933125177,21.7132,167.84,167.69,30.71]
[1721933125358,23.2035391,167.84,167.7,65.0]
[1721933125667,23.2035391,167.84,167.7,20.0]
[1721933125865,8.36326847,167.83,167.7,20.0]
[1721933126075,8.36326847,167.83,167.66,20.0]
[1721933126076,1.49044768,167.82,167.66,20.0]
[1721933127179,1.49044768,167.82,167.67,45.0]
[1721933127348,1.49044768,167.82,167.68,20.0]
[1721933127555,1.49044768,167.82,167.69,45.0]
[1721933127785,1.49044768,167.82,167.7,20.0]
[1721933127990,1.49044768,167.82,167.71,45.0]
[1721933128278,2.40456847,167.83,167.71,45.0]
[1721933128279,23.20344364,167.84,167.72,20.0]
[1721933128492,21.7132,167.84,167.73,45.0]
[1721933128776,21.7132,167.84,167.74,20.0]
[1721933129074,21.7132,167.84,167.75,45.0]
[1721933129285,7.62820538,167.88,167.77,30.71]
[1721933129585,15.2683,167.89,167.78,45.0]
[1721933129756,6.1383,167.93,167.81,30.71]
[1721933129950,6.1383,167.93,167.82,65.0]
[1721933130147,1.4889837,167.92,167.82,65.0]
[1721933130447,6.1383,167.93,167.82,65.0]
[1721933130758,15.2683,167.94,167.83,6.3431]
[1721933131165,15.2683,167.94,167.84,65.0]
[1721933132478,22.1083143,167.98,167.85,30.71]
[1721933132648,20.61947685,167.98,167.86,65.0]
[1721933132856,271.8683,168.07,167.89,30.71]
[1721933132857,15.2683,168.03,167.89,30.71]
[1721933133064,16.75679853,168.03,167.9,65.0]
[1721933133874,15.2683,168.03,167.9,65.0]
[1721933134253,256.6,168.07,167.93,30.71]
[1721933134461,1.48798802,168.06,167.94,20.0]
[1721933134681,1.48798802,168.06,167.95,45.0]
[1721933134859,1.48811205,168.05,167.96,20.0]
[1721933135058,1.48793016,168.08,167.97,45.0]
[1721933135372,1.48792778,168.07,167.97,45.0]
[1721933135870,1.48792778,168.07,167.96,20.0]
[1721933136177,1.48792778,168.07,167.94,20.0]
[1721933136346,16.75637221,168.09,167.95,45.0]
[1721933136547,16.75637221,168.09,167.96,20.0]
[1721933136757,16.75637221,168.09,167.97,45.0]
[1721933136972,15.2683,168.09,167.97,45.0]
[1721933137173,1.48787116,168.08,167.98,20.0]
[1721933137348,1.4879528,168.07,167.98,20.0]
[1721933137547,16.75624349,168.09,167.98,20.0]
[1721933137979,16.75624349,168.09,167.99,45.0]
[1721933138282,8.41233257,168.1,168.0,20.0]
[1721933138462,6.9245931,168.1,168.01,45.0]
[1721933138956,0.7862931,168.1,168.02,20.0]
[1721933139154,0.7862931,168.1,168.03,45.0]
[1721933139359,0.7862931,168.1,168.04,20.0]
[1721933139563,0.7862931,168.1,168.06,6.3431]
[1721933139764,0.7862931,168.1,168.07,20.0]
[1721933139976,0.7862931,168.1,168.07,65.0]
[1721933146881,0.7862931,168.1,168.07,20.0]
[1721933147112,0.7862931,168.1,168.05,20.0]
[1721933147266,0.7862931,168.1,168.03,16.0313]
[1721933148369,0.7862931,168.1,168.04,45.0]
[1721933148569,0.7862931,168.1,168.05,20.0]
[1721933148778,0.7862931,168.1,168.06,45.0]
[1721933148982,0.7862931,168.1,168.07,20.0]
[1721933149186,0.7862931,168.1,168.08,45.0]
[1721933149489,0.7862931,168.1,168.09,20.0]
[1721933149666,0.7862931,168.1,168.03,16.0313]
[1721933150190,0.7862931,168.1,168.0,53.4780848]
[1721933150688,0.7862931,168.1,167.97,6.3431]
[1721933150890,1.48762863,168.09,167.97,6.3431]
[1721933151061,1.48762863,168.09,167.94,16.0313]
[1721933152992,1.48762863,168.09,167.95,45.0]